Cogmind - Beta 10.2 --- EXPLORER MODE // 2021.04.07 @ 16:45:50 Player: thingamajigger Result: Destroyed by D-53 Grenadier with Mini Grenade Launcher Performance ------------- Evolutions (0) 0 Regions Visited (4) 800 Robots Destroyed (12) 60 Value Destroyed (227) 227 Prototype IDs (0) 0 Alien Tech Used (0) 0 Bonus (0) 0 TOTAL SCORE: 1087 Bonus ------- None Cogmind --------- Core Integrity 0/250 Matter 285/300 Energy 56/100 System Corruption 0% Temperature Cool (0) Movement Core (50) Location -9/Mines Parts ------- > --- POWER (1) -------- (None) > --- PROPULSION (2) --- (None) > --- UTILITY (3) ------ ECM Suite > --- WEAPON (2) ------- (None) > --- INVENTORY (4) ---- Aluminum Leg Assault Rifle Assault Rifle Assault Rifle Peak State ------------ > --- POWER ------------ Ion Engine > --- PROPULSION ------- Aluminum Leg Aluminum Leg > --- UTILITY ---------- Medium Storage Unit Targeting Computer Light Armor Plating > --- WEAPON ----------- Small Laser Small Laser > --- INVENTORY -------- Light Ion Engine ECM Suite Power Shielding Assault Rifle [Rating: 8] Favorites ----------- Power Ion Engine Engine Ion Engine Propulsion Aluminum Leg Leg Aluminum Leg Flight Unit Flight Unit Utility Medium Storage Unit Device ECM Suite Storage Medium Storage Unit Processor Targeting Computer Protection Light Armor Plating Weapon Assault Rifle Energy Gun Small Laser Ballistic Gun Assault Rifle Build | -11 -10 -10 -10 -9 ------- Run | Scr Mat Min Exi Min Slots Evolved 1 | . 1 . . . Power . | . . . . . Propulsion . | . . . . . Utility 1 | . 1 . . . Weapon . | . . . . . Parts Attached 14 | 7 3 2 . 2 Power 2 | 1 . 1 . . Engine 2 | 1 . 1 . . Core . | . . . . . Reactor . | . . . . . Propulsion 4 | 2 . . . 2 Treads . | . . . . . Leg 2 | 2 . . . . Wheel . | . . . . . Hover . | . . . . . Flight 2 | . . . . 2 Utility 4 | 2 1 1 . . Device 1 | . . 1 . . Storage 1 | 1 . . . . Processor 1 | 1 . . . . Hackware . | . . . . . Protection 1 | . 1 . . . Artifact . | . . . . . Weapon 4 | 2 2 . . . Energy Gun 2 | 2 . . . . Energy Cannon . | . . . . . Ballistic Gun 2 | . 2 . . . Ballistic Cannon . | . . . . . Launcher . | . . . . . Special Weapon . | . . . . . Impact Weapon . | . . . . . Slashing Weapon . | . . . . . Piercing Weapon . | . . . . . Special Melee Weapon . | . . . . . Unidentified Prototypes . | . . . . . Parts Lost 7 | . . . . 7 Power 1 | . . . . 1 Propulsion 3 | . . . . 3 Utility 1 | . . . . 1 Weapon 2 | . . . . 2 Highest Loss Streak 7 | . . . . 7 Average Slot Usage (%) 98 | . 99 100 100 80 Engine 11 | . 12 12 12 9 Leg 24 | . 25 25 25 18 Device 6 | . . 4 12 12 Storage 11 | . 12 12 12 9 Processor 5 | . 12 7 . . Protection 11 | . 12 12 12 8 Ballistic Gun 23 | . 21 25 25 18 Naked Turns . | . . . . . Heaviest Build 21 | 15 20 21 19 19 Greatest Support 20 | 20 20 20 20 20 Greatest Overweight (x) 4 | 4 . 1 . 1 Average Overweight (x) . | 1 . . . . Largest Inventory Capacity 8 | 8 8 8 8 8 Average Capacity 7 | 7 8 8 8 7 Most Carried 8 | 5 8 8 8 8 Average Carried 7 | 2 7 7 8 7 Final Capacity 8 | 8 8 8 8 4 Final Carried 8 | 5 8 8 8 4 Class Distribution -------------------- 100% | Hacker-Mutant Dominant Class ---------------- Hacker-Mutant | -10/Materials Hacker-Mutant | -10/Mines Hacker-Mutant | -10/Exiles Hacker-Mutant | -9/Mines Resources | -11 -10 -10 -10 -9 ----------- Run | Scr Mat Min Exi Min Matter Collected 560 | 140 328 92 . . Remotely . | . . . . . Salvage Created 342 | . 228 100 . 14 Parts 21 | . 11 10 . . Haulers Intercepted 1 | . 1 . . . Recyclers Shooed . | . . . . . Parts Field Recycled . | . . . . . Retrieved Matter . | . . . . . Parts Self-Destructed . | . . . . . Prevented . | . . . . . Kills | -11 -10 -10 -10 -9 ------- Run | Scr Mat Min Exi Min Combat Hostiles Destroyed 11 | . 4 6 . 1 Guns 11 | . 4 6 . 1 Classes Destroyed 5 | . 3 1 . 1 Hauler 1 | . 1 . . . Watcher 1 | . 1 . . . Swarmer 6 | . . 6 . . Grunt 4 | . 4 . . . Assembled 1 | . . . . 1 Best Kill Streak 3 | . 3 2 . 1 Combat Bots Only 2 | . 2 2 . 1 Max Kills in Single Turn 1 | . 1 1 . 1 Gunslinging . | . . . . . Exploded . | . . . . . Melee . | . . . . . Uniques/NPCs Destroyed . | . . . . . Combat | -11 -10 -10 -10 -9 -------- Run | Scr Mat Min Exi Min Damage Taken 847 | . 194 94 . 559 Core 260 | . 39 10 . 211 Absorbed by Shields . | . . . . . Core Remaining (%) 100 | 100 . . . . Volleys Fired 45 | . 28 12 . 5 Largest 2 | . 2 2 . 2 Hottest 40 | . 40 40 . 40 Shots Fired 90 | . 56 24 . 10 Gun 90 | . 56 24 . 10 Cannon . | . . . . . Launcher . | . . . . . Special . | . . . . . Kinetic 90 | . 56 24 . 10 Thermal . | . . . . . Explosive . | . . . . . Electromagnetic . | . . . . . Robot Hit Streak 17 | . 16 17 . 8 Robot Miss Streak 2 | . 2 1 . 1 Penetration Max . | . . . . . Secondary Targets . | . . . . . Shots Hit Robots 75 | . 49 18 . 8 Core Hits 20 | . 11 6 . 3 Critical Hits . | . . . . . Critical Kills . | . . . . . Critical Parts Destroyed . | . . . . . Melee Attacks . | . . . . . Impact . | . . . . . Slashing . | . . . . . Piercing . | . . . . . Sneak Attacks . | . . . . . Combat Hostiles . | . . . . . Follow-up Attacks . | . . . . . Damage Inflicted 707 | . 431 200 . 76 Guns 707 | . 431 200 . 76 Cannons . | . . . . . Explosions . | . . . . . Melee . | . . . . . Ramming . | . . . . . Kinetic 707 | . 431 200 . 76 Thermal . | . . . . . Explosive . | . . . . . Electromagnetic . | . . . . . Impact . | . . . . . Slashing . | . . . . . Piercing . | . . . . . Highest Corruption . | . . . . . Average Corruption . | . . . . . Corruption Purged . | . . . . . Overload Shots . | . . . . . Overflow Damage . | . . . . . Projectiles . | . . . . . Explosions . | . . . . . Melee . | . . . . . Knockbacks . | . . . . . Impact . | . . . . . Kinetic . | . . . . . Secondary . | . . . . . Self-Inflicted Damage . | . . . . . Shots . | . . . . . Rammed . | . . . . . Targets Rammed . | . . . . . Kicked . | . . . . . Crushed . | . . . . . Highest Temperature 49 | . 49 . . . Average Temperature 20 | . 20 . . . Received Heat Transfer 183 | . 183 . . . Siege Activations . | . . . . . Robots Corrupted . | . . . . . Combat Hostiles . | . . . . . Parts Fried . | . . . . . Impact Corruptions . | . . . . . Robots Melted . | . . . . . Combat Hostiles . | . . . . . Parts Melted . | . . . . . Heat Transferred . | . . . . . Parts Sabotaged . | . . . . . Parts Stolen . | . . . . . Parts Stripped . | . . . . . Power Chain Reactions . | . . . . . Missiles Intercepted . | . . . . . Alert | -11 -10 -10 -10 -9 ------- Run | Scr Mat Min Exi Min Peak Influence 160 | . 160 145 . . Initial 44 | . . 44 . . Average 63 | . 73 79 . . Maximum Alert Level . | . . . . . Low Security (%) 100 | 100 100 100 . 100 Level 1 . | . . . . . Level 2 . | . . . . . Level 3 . | . . . . . Level 4 . | . . . . . Level 5 . | . . . . . High Security . | . . . . . Max Security . | . . . . . Squads Dispatched . | . . . . . Investigation . | . . . . . Extermination . | . . . . . Reinforcement . | . . . . . Assault . | . . . . . Garrison . | . . . . . Intercept . | . . . . . Construction Impeded . | . . . . . Haulers Reinforced . | . . . . . Stealth | -11 -10 -10 -10 -9 --------- Run | Scr Mat Min Exi Min Distress Signals 2 | . 2 . . . Communications Jammed . | . . . . . Distress Signals . | . . . . . Times Spotted 26 | . 7 8 . 11 Peak Tracking Total 8 | . 5 2 . 8 Tactical Retreats 3 | . . 2 . 1 Traps | -11 -10 -10 -10 -9 ------- Run | Scr Mat Min Exi Min Traps Triggered 1 | . 1 . . . Indirectly . | . . . . . Trap Hack Attempts . | . . . . . Triggered . | . . . . . Disarmed . | . . . . . Reprogrammed . | . . . . . Reused . | . . . . . Traps Extracted . | . . . . . Installed . | . . . . . Triggered . | . . . . . Machines | -11 -10 -10 -10 -9 ---------- Run | Scr Mat Min Exi Min Machines Disabled . | . . . . . Max in Single Turn . | . . . . . Machines Sabotaged . | . . . . . Garrisons Compromised . | . . . . . Overloaded Fab Kills . | . . . . . Fab Network Shutdowns . | . . . . . Hacking | -11 -10 -10 -10 -9 --------- Run | Scr Mat Min Exi Min Machines Accessed 4 | . 3 . 1 . Terminals 3 | . 3 . . . Fabricators . | . . . . . Repair Stations . | . . . . . Recycling Units . | . . . . . Scanalyzers . | . . . . . Garrison Access . | . . . . . Total Hacks 12 | . 11 . 1 . Successful 11 | . 10 . 1 . Failed 1 | . 1 . . . Catastrophic . | . . . . . Database Lockouts . | . . . . . Manual 7 | . 7 . . . Terminals 11 | . 11 . . . Fabricators . | . . . . . Repair Stations . | . . . . . Recycling Units . | . . . . . Scanalyzers . | . . . . . Garrison Access . | . . . . . Terminal Hacks 9 | . 8 . 1 . Record 3 | . 2 . 1 . Branch Access Points 1 | . 1 . . . Terminal Index 1 | . 1 . . . Locate Traps 1 | . 1 . . . Zone Layout 3 | . 3 . . . Fabricator Hacks . | . . . . . Repair Station Hacks . | . . . . . Recycling Unit Hacks . | . . . . . Scanalyzer . | . . . . . Garrison Access Hacks . | . . . . . Unauthorized Hacks 2 | . 2 . . . Terminals 2 | . 2 . . . Botnet 2 | . 2 . . . Fabricators . | . . . . . Repair Stations . | . . . . . Recycling Units . | . . . . . Scanalyzers . | . . . . . Garrison Access . | . . . . . Data Cores Recovered . | . . . . . Used . | . . . . . Hacking Detections 2 | . 2 . . . Full Trace Events 2 | . 2 . . . Feedback Events . | . . . . . Feedback Blocked . | . . . . . Robot Schematics Acquired . | . . . . . Robots Built . | . . . . . Matter . | . . . . . Time . | . . . . . Total Robot Build Rating . | . . . . . Part Schematics Acquired . | . . . . . Parts Built . | . . . . . Matter . | . . . . . Time . | . . . . . Total Part Build Rating . | . . . . . Parts Repaired . | . . . . . Time . | . . . . . Parts Recycled . | . . . . . Recycled Matter . | . . . . . Retrieved Matter . | . . . . . Retrieved Components . | . . . . . Parts Scanalyzed . | . . . . . Part Schematics Acquired . | . . . . . Parts Damaged . | . . . . . Bothacking | -11 -10 -10 -10 -9 ------------ Run | Scr Mat Min Exi Min Used RIF Installer . | . . . . . Robots Hacked . | . . . . . Non-combat . | . . . . . Combat . | . . . . . Robot Hacks Applied . | . . . . . Relay Couplers Released . | . . . . . Robots Rewired . | . . . . . Allies Hacked . | . . . . . Hacks Repelled . | . . . . . Allies | -11 -10 -10 -10 -9 -------- Run | Scr Mat Min Exi Min Total Allies . | . . . . . Largest Group . | . . . . . Highest-Rated Group . | . . . . . Highest-Rated Ally . | . . . . . Total Orders . | . . . . . Ally Attacks . | . . . . . Total Damage . | . . . . . Kills . | . . . . . Allies Corrupted . | . . . . . Allies Melted . | . . . . . Intel | -11 -10 -10 -10 -9 ------- Run | Scr Mat Min Exi Min Robot Analysis Total . | . . . . . Derelict Logs Recovered 1 | . . 1 . . Drone Launches . | . . . . . Drone Recoveries . | . . . . . Exploration | -11 -10 -10 -10 -9 ------------- Run | Scr Mat Min Exi Min Turns Passed 1720 | 110 327 718 433 132 Spaces Moved 1265 | 59 185 539 361 121 Core 51 | 25 . . . 26 Treads . | . . . . . Legs 1191 | 34 185 539 361 72 Wheels . | . . . . . Hover . | . . . . . Flight 23 | . . . . 23 Fastest Speed 37 | 50 120 120 120 37 Average Speed 119 | 144 120 123 120 90 Slowest Speed 250 | 250 120 150 120 150 Overloaded Moves . | . . . . . Propulsion Burnouts . | . . . . . Robots Hopped . | . . . . . Cave-ins Triggered . | . . . . . Exploration Rate (%) 48 | 4 38 74 82 44 Regions Visited 4 Branch Regions 3 Pre-discovered Areas 1 | . . 1 . . Known Exits Taken 4 | 1 1 1 1 . Unknown Exits Taken . | . . . . . Scrap Searched 1 | . . 1 . . Spaces Dug . | . . . . . Terrain Destroyed . | . . . . . Melee . | . . . . . Projectile . | . . . . . AOE . | . . . . . Terrain Rammed . | . . . . . Walls Destroyed . | . . . . . Machines Disabled . | . . . . . Actions | -11 -10 -10 -10 -9 --------- Run | Scr Mat Min Exi Min Total 1378 | 80 235 570 360 133 Wait 35 | 10 12 9 . 4 Move 1261 | 58 184 538 360 121 Hop . | . . . . . Pick Up 14 | 5 4 5 . . Fast Attach 9 | 7 2 . . . Attach 2 | . 1 . . 1 Detach 2 | . 2 . . . Swap 3 | . . 2 . 1 Drop 7 | . 2 4 . 1 Fire 45 | . 28 12 . 5 Melee . | . . . . . Ram . | . . . . . Kick . | . . . . . Crush . | . . . . . Escape Stasis . | . . . . . Rewire . | . . . . . Trap . | . . . . . Miscellaneous . | . . . . . Route ------- -11/Scrapyard -10/Materials (discovered 3 exits: *Mat / *Min x2) -10/Mines -10/Exiles (discovered 2 exits: *Min x2) -9/Mines History --------- Turn | Location | Event 22 | -11/Scrapyard | Identified exit to Materials 22 | -11/Scrapyard | Discovered exit to Materials (range 15) 111 | -11/Scrapyard | Entered Materials 111 | -10/Materials | Evolved 1 slot: Utility x1 128 | -10/Materials | Identified exit to Mines 308 | -10/Materials | Build established: Hacker-Mutant 395 | -10/Materials | Identified exit to Materials 395 | -10/Materials | Discovered exit to Materials (range 15) 438 | -10/Materials | Entered Mines 681 | -10/Mines | Learned location of Storage (-7) 1147 | -10/Mines | Identified exit to Exiles 1151 | -10/Mines | Deemed a non-threat by the Exiles lab entrance 1156 | -10/Mines | Entered Exiles 1156 | -10/Exiles | Found Exiles lab abandoned 1176 | -10/Exiles | Identified exit to Mines 1176 | -10/Exiles | Discovered exit to Mines (range 15) 1577 | -10/Exiles | Discovered exit to Mines (range 12) 1589 | -10/Exiles | Entered Mines 1649 | -9/Mines | Assembled infested the area 1654 | -9/Mines | Assisted by a Guerilla fighting off Assembled 1717 | -9/Mines | Core integrity fell below 50% 1721 | -9/Mines | Destroyed by D-53 Grenadier with Mini Grenade Launcher Last Messages --------------- 01667_ J7-ZLI(h) destroyed. 01675_ as-07240 destroyed. 01678_ as-23370 destroyed. 01678_ as-70534 destroyed. 01678_ as-22966 destroyed. 01679_ as-91235 destroyed. 01682_ The unstable cave ceiling collapses. 01687_ Assault Rifle destroyed. 01687_ Lgt. Armor Plating destroyed. 01687_ Aluminum Leg destroyed. 01691_ Assault Rifle destroyed. 01693_ Lgt. Ion Engine destroyed. 01694_ The unstable cave ceiling collapses. 01695_ Dropped Med. Storage Unit. 01697_ The unstable cave ceiling collapses. 01703_ T-07 Excavator is excavating. 01708_ Flight Unit destroyed. 01708_ Core Extractor disabled. 01708_ T-07 Excavator is excavating. 01721_ The unstable cave ceiling collapses. Map ----- +----------------------------------------------------+ | ????????????????????????????????????# #??????????? | | ???????????????????????????????????? #??###?????? | | ????????????????????????????????????# #??# ?????? | | ????????????????????????????????????# #??# #?????? | | ????????????????????????????????????# #??# #?????? | | ????????????????????????????????????# #??# #?????? | | ?????????????????????################ #### #?????# | | ????????????????# #?## ## ## " #????## | | ????????????????# # # "%" #### ###### | | ????????????????# % % ###??# % | | ????????????????# $ % #????#### #### | | ????????????????## # # ##???????# #??# | | ????????????????????# #?????????? #??? | | ?????????????????????# # #?????????####??? | | ?????????????????????# # #???????????????? | | ????????????????###### ##??????????????? | | ?????????????? ## #??????????????? | | ??????????????? ##???????????#### | | ??????????????? ???### # # #??????????## | | ??????????????????????? # ##?????????## | | ??????????????????????## #?????????## | | ??????????###????????## #?????????# | | ?????????## #??????## r #####???#??## | | ?????????# ##???## ! #???# ## | | ?????????# #### [ #??## | | ?????????# d @ ## #?## | | ??????????# ##? ### | | ????????????# t# # ##???## | | ????????????## ###????# ## | | ?????????????# ##??####?####???## | | ?????????????# ##### ##????????##### | | ??????????#### #????????????### | | ??????????# d #???????????????# | | ??????????# ##???????????????? | | ??????????# ## ##????????????????? | | ??????????# ?# ##### #???????????? | | ?????????????## #????????????? | | ??????????????## #????????????? | | ????????????#### ######?????????????? | | ????????????# #??????????????????? | | ???????????# ###??????????????????? | | ???????????## ### #????????????????????? | | ????????????#### ##?#######????????????????????? | | ???????????????#####?????????????????????????????? | | ?????????????????????????????????????????????????? | | | | | | | | | | | +----------------------------------------------------+ Best States ------------- Heat Dissipation 25 Energy Generation 10 Energy Capacity 250 Matter Stores 300 Matter Capacity 300 Sight Range 16 Terrain Scan Density 10 ECM Strength 1 Armor Coverage 150 Resistance: KI 35 Resistance: TH 35 Resistance: EX 35 Resistance: EM 35 Resistance: I 35 Resistance: S 35 Resistance: P 35 Evasion (%) 62 Targeting Accuracy 5 Offensive Hacking 20 Item Schematics ----------------- None Robot Schematics ------------------ None Fabricated ------------ Nothing Alien Tech Used ----------------- None Achievements -------------- None Challenges ------------ None Game ------ Seed DamperNullRailgun Manual? 0 Play Time 00:08:41 Cumulative 28.0 hours Start 2021.04.07 @ 16:38:25 End 2021.04.07 @ 16:45:50 Sessions 1 Manual Loads 0 Difficulty Explorer Special Mode None Game No. 67 Rogue 63 Adventurer 0 Explorer 4 Win Type - Total 0 Types 0/0/0/0/0/0/0/0/0 Lore% 28 Gallery% 47 Achievement% 30 Wizard Run 0 Options --------- ASCII 0 Keyboard 1 Movement Numpad Keybinds 0 Fullscreen 1 Font 18/SmallcapsGlow Map View 76x50 Tactical HUD 1 Map Filters NONE Filters NONE Steam 1 RUN: 56b2a6c8-e636-4e4c-b320-ede47b5a06ec